[Event "*** SCC Grand Prix: Titled Tuesday Blitz"]
[Site "Chess.com"]
[Date "2020.07.14"]
[Round "4"]
[White "ViktoriyaTarasova"]
[Black "zajka-molotok"]
[Result "0-1"]
[WhiteElo "2226"]
[BlackElo "2412"]
[TimeControl "180+1"]
[EndTime "10:41:23 PDT"]
[Termination "zajka-molotok won by resignation"]

1. d4 {[%clk 0:03:00.9]} 1... d5 {[%clk 0:02:59.5]} 2. c4 {[%clk 0:02:59.9]}
2... dxc4 {[%clk 0:02:59]} 3. e4 {[%clk 0:02:58.7]} 3... Nf6 {[%clk 0:02:57.3]}
4. e5 {[%clk 0:02:58.1]} 4... Nd5 {[%clk 0:02:56.9]} 5. Bxc4 {[%clk 0:02:58.2]}
5... Nb6 {[%clk 0:02:54.2]} 6. Bb3 {[%clk 0:02:57.9]} 6... Nc6 {[%clk
0:02:50.4]} 7. Ne2 {[%clk 0:02:57.7]} 7... Bg4 {[%clk 0:02:45.3]} 8. f3 {[%clk
0:02:48.9]} 8... Bf5 {[%clk 0:02:41.8]} 9. Nbc3 {[%clk 0:02:45.7]} 9... e6
{[%clk 0:02:41.1]} 10. O-O {[%clk 0:02:45.5]} 10... Be7 {[%clk 0:02:30.5]} 11.
a4 {[%clk 0:02:44.6]} 11... a5 {[%clk 0:02:13.7]} 12. Be3 {[%clk 0:02:40.9]}
12... Nb4 {[%clk 0:02:11.5]} 13. Ng3 {[%clk 0:02:38.3]} 13... Bg6 {[%clk
0:02:06.2]} 14. f4 {[%clk 0:02:37.7]} 14... Bd3 {[%clk 0:02:00.7]} 15. Rf2
{[%clk 0:02:34.7]} 15... g6 {[%clk 0:01:45.5]} 16. Nge4 {[%clk 0:02:20.8]} 16...
O-O {[%clk 0:01:36.7]} 17. Nc5 {[%clk 0:02:05.1]} 17... Bxc5 {[%clk 0:01:29]}
18. dxc5 {[%clk 0:02:04.8]} 18... N6d5 {[%clk 0:01:29]} 19. Nxd5 {[%clk
0:02:03]} 19... exd5 {[%clk 0:01:26.5]} 20. Bd4 {[%clk 0:01:59.7]} 20... Be4
{[%clk 0:01:12.7]} 21. Qg4 {[%clk 0:01:44.1]} 21... Nc6 {[%clk 0:01:05.6]} 22.
Be3 {[%clk 0:01:39.3]} 22... Ne7 {[%clk 0:01:00.1]} 23. Rd1 {[%clk 0:01:37.5]}
23... c6 {[%clk 0:00:58.5]} 24. Qe2 {[%clk 0:01:34.6]} 24... Nf5 {[%clk
0:00:56.6]} 25. Bc1 {[%clk 0:01:32.5]} 25... Qe7 {[%clk 0:00:51.2]} 26. g4
{[%clk 0:01:31.3]} 26... Nh4 {[%clk 0:00:48.2]} 27. Be3 {[%clk 0:01:24.6]} 27...
Qe6 {[%clk 0:00:36.2]} 28. Rdf1 {[%clk 0:01:18.4]} 28... Nf3+ {[%clk 0:00:26]}
29. Rxf3 {[%clk 0:01:17]} 29... Qxg4+ {[%clk 0:00:25.6]} 30. Kh1 {[%clk
0:01:02.1]} 30... f6 {[%clk 0:00:18.7]} 31. Bd4 {[%clk 0:00:54.3]} 31... Qxf4
{[%clk 0:00:18.2]} 32. Qe3 {[%clk 0:00:25]} 32... Bxf3+ {[%clk 0:00:15.2]} 33.
Rxf3 {[%clk 0:00:24]} 33... Qxe3 {[%clk 0:00:14.3]} 34. Rxe3 {[%clk 0:00:23.8]}
34... fxe5 {[%clk 0:00:13.4]} 35. Rxe5 {[%clk 0:00:22.9]} 35... Rae8 {[%clk
0:00:13.7]} 36. Rxe8 {[%clk 0:00:18.4]} 36... Rxe8 {[%clk 0:00:14.6]} 37. Bc3
{[%clk 0:00:18.6]} 37... Ra8 {[%clk 0:00:12.5]} 38. Kg2 {[%clk 0:00:18.4]} 38...
Kf7 {[%clk 0:00:12.6]} 39. Kf3 {[%clk 0:00:18.9]} 39... Ke6 {[%clk 0:00:12.9]}
40. Kf4 {[%clk 0:00:19.5]} 40... h6 {[%clk 0:00:12.4]} 41. Bd1 {[%clk
0:00:19.9]} 41... Rf8+ {[%clk 0:00:11.6]} 42. Ke3 {[%clk 0:00:19.7]} 42... g5
{[%clk 0:00:10.2]} 43. Bg4+ {[%clk 0:00:19.6]} 43... Ke7 {[%clk 0:00:09.6]} 44.
Bxa5 {[%clk 0:00:18.6]} 44... Rf4 {[%clk 0:00:09.6]} 45. Bd1 {[%clk 0:00:16.7]}
45... Rc4 {[%clk 0:00:09.1]} 46. b4 {[%clk 0:00:14.1]} 46... Ke6 {[%clk
0:00:08.1]} 47. Be2 {[%clk 0:00:12.1]} 47... Re4+ {[%clk 0:00:07.6]} 48. Kf2
{[%clk 0:00:11.6]} 48... d4 {[%clk 0:00:06.7]} 49. Bc4+ {[%clk 0:00:10.3]} 49...
Kf6 {[%clk 0:00:05.3]} 50. Bd8+ {[%clk 0:00:09.9]} 50... Kg7 {[%clk 0:00:04.6]}
51. Kf3 {[%clk 0:00:09.3]} 51... Rf4+ {[%clk 0:00:04.4]} 52. Kg3 {[%clk
0:00:09.1]} 52... Re4 {[%clk 0:00:03.9]} 53. Bc7 {[%clk 0:00:08.9]} 53... d3
{[%clk 0:00:03]} 54. Bxd3 {[%clk 0:00:08.7]} 54... Re3+ {[%clk 0:00:03]} 55. Kg4
{[%clk 0:00:09]} 55... Rxd3 {[%clk 0:00:03.9]} 56. Be5+ {[%clk 0:00:09.5]} 56...
Kg6 {[%clk 0:00:03.8]} 57. b5 {[%clk 0:00:09.6]} 57... Rb3 {[%clk 0:00:03.7]}
58. h4 {[%clk 0:00:08.2]} 58... cxb5 {[%clk 0:00:03]} 59. hxg5 {[%clk
0:00:07.4]} 59... hxg5 {[%clk 0:00:02.8]} 60. axb5 {[%clk 0:00:07.2]} 60... Rxb5
{[%clk 0:00:02.9]} 61. Bd6 {[%clk 0:00:07.3]} 61... Rb4+ {[%clk 0:00:03]} 62.
Kg3 {[%clk 0:00:07.4]} 62... Rc4 {[%clk 0:00:03.9]} 63. Kf2 {[%clk 0:00:06.8]}
63... Kf5 {[%clk 0:00:04.2]} 64. Ke3 {[%clk 0:00:07]} 64... g4 {[%clk
0:00:04.5]} 65. Kd3 {[%clk 0:00:07.9]} 65... Re4 {[%clk 0:00:04.4]} 66. Kd2
{[%clk 0:00:07.1]} 66... Re6 {[%clk 0:00:04.5]} 67. Kd3 {[%clk 0:00:07.2]} 67...
Rg6 {[%clk 0:00:04.3]} 68. Bg3 {[%clk 0:00:06.6]} 68... Ke6 {[%clk 0:00:03.9]}
69. Kc4 {[%clk 0:00:07]} 69... Kf5 {[%clk 0:00:03.9]} 70. Kb5 {[%clk 0:00:07.3]}
70... Ke4 {[%clk 0:00:04]} 71. Bd6 {[%clk 0:00:06.2]} 71... Kf3 {[%clk 0:00:04]}
72. Kb6 {[%clk 0:00:06.5]} 72... g3 {[%clk 0:00:04.2]} 73. Kxb7 {[%clk
0:00:06.8]} 73... g2 {[%clk 0:00:04.2]} 74. Bh2 {[%clk 0:00:06.8]} 74... Kf2
{[%clk 0:00:04]} 75. Bg1+ {[%clk 0:00:07.3]} 75... Kxg1 {[%clk 0:00:03.5]} 76.
c6 {[%clk 0:00:07.2]} 76... Rxc6 {[%clk 0:00:03.5]} 77. Kxc6 {[%clk 0:00:04.4]}
77... Kf2 {[%clk 0:00:04.4]} 78. Kd5 {[%clk 0:00:03.3]} 78... g1=Q {[%clk
0:00:05.3]} 79. Ke4 {[%clk 0:00:01.8]} 79... Qg3 {[%clk 0:00:06.2]} 0-1

[Event "*** SCC Grand Prix: Titled Tuesday Blitz"]
[Site "Chess.com"]
[Date "2020.07.14"]
[Round "4"]
[White "vesalhamedinia"]
[Black "rynos0411"]
[Result "1/2-1/2"]
[WhiteElo "2222"]
[BlackElo "2399"]
[TimeControl "180+1"]
[EndTime "10:41:27 PDT"]
[Termination "Game drawn - insufficient material"]

1. d4 {[%clk 0:03:00.5]} 1... d5 {[%clk 0:02:59.4]} 2. c4 {[%clk 0:02:59.7]}
2... c6 {[%clk 0:02:59.9]} 3. cxd5 {[%clk 0:02:55.1]} 3... cxd5 {[%clk
0:03:00.8]} 4. Nc3 {[%clk 0:02:56]} 4... Nf6 {[%clk 0:03:00.2]} 5. Bf4 {[%clk
0:02:53.8]} 5... Nc6 {[%clk 0:02:59.3]} 6. e3 {[%clk 0:02:53.6]} 6... a6 {[%clk
0:02:57.9]} 7. Bd3 {[%clk 0:02:52]} 7... Bg4 {[%clk 0:02:56.7]} 8. Qb3 {[%clk
0:02:49.6]} 8... Qd7 {[%clk 0:02:51.8]} 9. Nge2 {[%clk 0:02:42.4]} 9... e6
{[%clk 0:02:47.7]} 10. O-O {[%clk 0:02:37.6]} 10... Be7 {[%clk 0:02:39.7]} 11.
h3 {[%clk 0:02:29.2]} 11... Bh5 {[%clk 0:02:39.3]} 12. Ng3 {[%clk 0:02:15]}
12... Bg6 {[%clk 0:02:38.6]} 13. Bxg6 {[%clk 0:02:12]} 13... hxg6 {[%clk
0:02:37.7]} 14. Na4 {[%clk 0:02:00]} 14... Na5 {[%clk 0:02:21.5]} 15. Qd1 {[%clk
0:01:55.6]} 15... Qb5 {[%clk 0:02:15]} 16. b3 {[%clk 0:01:42.2]} 16... O-O
{[%clk 0:02:13.2]} 17. Rc1 {[%clk 0:01:38.3]} 17... Rac8 {[%clk 0:02:11.1]} 18.
Qd2 {[%clk 0:01:37.1]} 18... Bb4 {[%clk 0:01:57.9]} 19. Qb2 {[%clk 0:01:36.1]}
19... Nc4 {[%clk 0:01:31.3]} 20. bxc4 {[%clk 0:01:27.4]} 20... Qxa4 {[%clk
0:01:31.5]} 21. Qb3 {[%clk 0:00:59.4]} 21... Qxb3 {[%clk 0:01:17]} 22. axb3
{[%clk 0:01:00.3]} 22... Rc6 {[%clk 0:01:08]} 23. cxd5 {[%clk 0:00:51.6]} 23...
Nxd5 {[%clk 0:01:06.7]} 24. Rxc6 {[%clk 0:00:50.5]} 24... bxc6 {[%clk
0:01:07.6]} 25. Rc1 {[%clk 0:00:37.6]} 25... Rc8 {[%clk 0:01:05.1]} 26. Ne4
{[%clk 0:00:36.8]} 26... a5 {[%clk 0:00:57.9]} 27. g4 {[%clk 0:00:27.8]} 27...
Nxf4 {[%clk 0:00:27.6]} 28. exf4 {[%clk 0:00:27.9]} 28... Kf8 {[%clk 0:00:28.5]}
29. Kg2 {[%clk 0:00:26.7]} 29... Ke7 {[%clk 0:00:28.5]} 30. Kf3 {[%clk
0:00:27.1]} 30... f5 {[%clk 0:00:26.7]} 31. Ng5 {[%clk 0:00:17.1]} 31... Rd8
{[%clk 0:00:23.5]} 32. Ke3 {[%clk 0:00:17.4]} 32... Rd6 {[%clk 0:00:20.1]} 33.
Nf3 {[%clk 0:00:17.6]} 33... c5 {[%clk 0:00:15.1]} 34. dxc5 {[%clk 0:00:15.6]}
34... Rc6 {[%clk 0:00:13.3]} 35. Ne5 {[%clk 0:00:16]} 35... Rxc5 {[%clk
0:00:13.4]} 36. Rd1 {[%clk 0:00:13]} 36... Rc3+ {[%clk 0:00:12]} 37. Rd3 {[%clk
0:00:13.4]} 37... Bc5+ {[%clk 0:00:11.9]} 38. Ke2 {[%clk 0:00:13.4]} 38... Rc2+
{[%clk 0:00:11.5]} 39. Rd2 {[%clk 0:00:13.8]} 39... Rxd2+ {[%clk 0:00:11.9]} 40.
Kxd2 {[%clk 0:00:14.7]} 40... Bxf2 {[%clk 0:00:12.8]} 41. Nxg6+ {[%clk
0:00:15.2]} 41... Kf6 {[%clk 0:00:13.3]} 42. Kd3 {[%clk 0:00:15]} 42... Bg3
{[%clk 0:00:12.8]} 43. Ne5 {[%clk 0:00:12.2]} 43... Bxf4 {[%clk 0:00:12.9]} 44.
Nc4 {[%clk 0:00:09.4]} 44... Bc7 {[%clk 0:00:12.3]} 45. gxf5 {[%clk 0:00:09.8]}
45... exf5 {[%clk 0:00:11.7]} 46. Ke3 {[%clk 0:00:10.3]} 46... Kg5 {[%clk
0:00:12]} 47. Kf3 {[%clk 0:00:10.7]} 47... Kh4 {[%clk 0:00:11.9]} 48. Ne3 {[%clk
0:00:09.4]} 48... g6 {[%clk 0:00:10.4]} 49. Nd5 {[%clk 0:00:09.3]} 49... Bd8
{[%clk 0:00:09.8]} 50. Nf4 {[%clk 0:00:09.1]} 50... g5 {[%clk 0:00:08.8]} 51.
Ne6 {[%clk 0:00:09.4]} 51... Bb6 {[%clk 0:00:06.9]} 52. Ng7 {[%clk 0:00:09.6]}
52... g4+ {[%clk 0:00:05.5]} 53. hxg4 {[%clk 0:00:10.5]} 53... fxg4+ {[%clk
0:00:06.4]} 54. Kg2 {[%clk 0:00:11.1]} 54... Kg5 {[%clk 0:00:06.7]} 55. Ne6+
{[%clk 0:00:11.4]} 55... Kf5 {[%clk 0:00:06.7]} 56. Ng7+ {[%clk 0:00:11.3]}
56... Ke4 {[%clk 0:00:06.9]} 57. Kg3 {[%clk 0:00:11.1]} 57... Kd3 {[%clk
0:00:06.2]} 58. Kxg4 {[%clk 0:00:11.5]} 58... Kc3 {[%clk 0:00:07.1]} 59. Nf5
{[%clk 0:00:11]} 59... Kxb3 {[%clk 0:00:06.8]} 60. Ne7 {[%clk 0:00:09.6]} 60...
Kc4 {[%clk 0:00:05.2]} 61. Nc6 {[%clk 0:00:09.1]} 61... a4 {[%clk 0:00:05.1]}
62. Ne5+ {[%clk 0:00:09.6]} 62... Kc3 {[%clk 0:00:05.2]} 63. Nd7 {[%clk
0:00:07.2]} 63... a3 {[%clk 0:00:02.7]} 64. Nxb6 {[%clk 0:00:05.6]} 64... a2
{[%clk 0:00:03]} 65. Nd5+ {[%clk 0:00:04.7]} 65... Kb3 {[%clk 0:00:03.3]} 66.
Kf5 {[%clk 0:00:03]} 66... a1=Q {[%clk 0:00:03.2]} 67. Ke6 {[%clk 0:00:03.9]}
67... Qd4 {[%clk 0:00:03.1]} 68. Nf6 {[%clk 0:00:03.8]} 68... Kc4 {[%clk
0:00:03]} 69. Kf7 {[%clk 0:00:03.4]} 69... Qf2 {[%clk 0:00:02.1]} 70. Ke7 {[%clk
0:00:03.5]} 70... Qf1 {[%clk 0:00:02.4]} 71. Ke6 {[%clk 0:00:04]} 71... Kc5
{[%clk 0:00:02.5]} 72. Ke5 {[%clk 0:00:03.7]} 72... Qe2+ {[%clk 0:00:02.7]} 73.
Ne4+ {[%clk 0:00:04.1]} 73... Kc4 {[%clk 0:00:03.1]} 74. Kf5 {[%clk 0:00:03.9]}
74... Kd3 {[%clk 0:00:02.9]} 75. Nc5+ {[%clk 0:00:03.5]} 75... Kd4 {[%clk
0:00:02.8]} 76. Ne6+ {[%clk 0:00:03.8]} 76... Kd3 {[%clk 0:00:01.2]} 77. Nf4+
{[%clk 0:00:02.3]} 77... Kd2 {[%clk 0:00:01.4]} 78. Nxe2 {[%clk 0:00:03.2]}
1/2-1/2

[Event "*** SCC Grand Prix: Titled Tuesday Blitz"]
[Site "Chess.com"]
[Date "2020.07.14"]
[Round "4"]
[White "Hikaru"]
[Black "exoticprincess"]
[Result "0-1"]
[WhiteElo "3194"]
[BlackElo "2801"]
[TimeControl "180+1"]
[EndTime "10:41:29 PDT"]
[Termination "exoticprincess won on time"]

1. Nf3 {[%clk 0:03:00.9]} 1... d5 {[%clk 0:02:55.6]} 2. e3 {[%clk 0:03:00.6]}
2... c6 {[%clk 0:02:55.7]} 3. c4 {[%clk 0:03:00.3]} 3... Nf6 {[%clk 0:02:55.3]}
4. d4 {[%clk 0:03:00.5]} 4... Bf5 {[%clk 0:02:54]} 5. Qb3 {[%clk 0:03:00]} 5...
Qc7 {[%clk 0:02:50.3]} 6. cxd5 {[%clk 0:02:50.3]} 6... cxd5 {[%clk 0:02:48.9]}
7. Nc3 {[%clk 0:02:50.7]} 7... e6 {[%clk 0:02:42.5]} 8. Bd2 {[%clk 0:02:50.7]}
8... Nc6 {[%clk 0:02:41.1]} 9. Nh4 {[%clk 0:02:43.5]} 9... g6 {[%clk 0:02:37.1]}
10. f3 {[%clk 0:02:31.7]} 10... h5 {[%clk 0:02:35.4]} 11. g3 {[%clk 0:02:31]}
11... Bh6 {[%clk 0:02:22.1]} 12. Rc1 {[%clk 0:02:28.9]} 12... Qe7 {[%clk
0:02:20]} 13. Bb5 {[%clk 0:02:26.2]} 13... O-O {[%clk 0:02:17.5]} 14. Ne2 {[%clk
0:02:26]} 14... Rfc8 {[%clk 0:02:10.4]} 15. Nxf5 {[%clk 0:02:10.3]} 15... exf5
{[%clk 0:02:07.6]} 16. Kf2 {[%clk 0:02:03.8]} 16... Qe6 {[%clk 0:01:59.2]} 17.
Bxc6 {[%clk 0:01:55.3]} 17... bxc6 {[%clk 0:01:57.9]} 18. Rc2 {[%clk 0:01:55.7]}
18... g5 {[%clk 0:01:41.9]} 19. Rf1 {[%clk 0:01:45.1]} 19... g4 {[%clk 0:01:41]}
20. Kg1 {[%clk 0:01:45.5]} 20... gxf3 {[%clk 0:01:39]} 21. Rxf3 {[%clk
0:01:45.8]} 21... Ne4 {[%clk 0:01:37.5]} 22. Nf4 {[%clk 0:01:41.8]} 22... Bxf4
{[%clk 0:01:36.7]} 23. Rxf4 {[%clk 0:01:42.7]} 23... Rab8 {[%clk 0:01:36.2]} 24.
Qd3 {[%clk 0:01:42.7]} 24... c5 {[%clk 0:01:28.4]} 25. dxc5 {[%clk 0:01:25.7]}
25... Rxc5 {[%clk 0:01:28.4]} 26. Bc3 {[%clk 0:01:07.4]} 26... Rbc8 {[%clk
0:01:14.7]} 27. Rh4 {[%clk 0:00:49.6]} 27... Qg6 {[%clk 0:00:53.5]} 28. Re2
{[%clk 0:00:43.3]} 28... Kh7 {[%clk 0:00:47.5]} 29. Kg2 {[%clk 0:00:33.5]} 29...
Rg8 {[%clk 0:00:34.8]} 30. Be5 {[%clk 0:00:26.8]} 30... Rgc8 {[%clk 0:00:24.3]}
31. b4 {[%clk 0:00:22.7]} 31... Rc1 {[%clk 0:00:22.7]} 32. Qxd5 {[%clk
0:00:21.7]} 32... R8c2 {[%clk 0:00:22.8]} 33. Qd3 {[%clk 0:00:21.8]} 33... Qc6
{[%clk 0:00:22.2]} 34. b5 {[%clk 0:00:18.5]} 34... Nc5+ {[%clk 0:00:15]} 35.
bxc6 {[%clk 0:00:17.7]} 35... Nxd3 {[%clk 0:00:15.7]} 36. Rxc2 {[%clk
0:00:09.5]} 36... Rxc2+ {[%clk 0:00:16.6]} 37. Kh3 {[%clk 0:00:09.7]} 37... Nf2+
{[%clk 0:00:16]} 38. Kg2 {[%clk 0:00:09.8]} 38... Ng4+ {[%clk 0:00:16.7]} 39.
Kf1 {[%clk 0:00:09.9]} 39... Nxe3+ {[%clk 0:00:15.4]} 40. Kg1 {[%clk 0:00:09.2]}
40... Rc1+ {[%clk 0:00:15.6]} 41. Kf2 {[%clk 0:00:09.8]} 41... Ng4+ {[%clk
0:00:16.4]} 42. Ke2 {[%clk 0:00:10.5]} 42... Nxe5 {[%clk 0:00:16.2]} 43. Rxh5+
{[%clk 0:00:11.4]} 43... Kg6 {[%clk 0:00:16.5]} 44. Rh8 {[%clk 0:00:11.8]} 44...
Rxc6 {[%clk 0:00:16.5]} 45. Re8 {[%clk 0:00:11.9]} 45... f6 {[%clk 0:00:16.4]}
46. Ke3 {[%clk 0:00:10.1]} 46... Ra6 {[%clk 0:00:16.6]} 47. Rg8+ {[%clk
0:00:09.7]} 47... Kf7 {[%clk 0:00:15.9]} 48. Rh8 {[%clk 0:00:09.8]} 48... Rxa2
{[%clk 0:00:16.1]} 49. h4 {[%clk 0:00:10.4]} 49... Ra4 {[%clk 0:00:16]} 50. Kf2
{[%clk 0:00:11.1]} 50... Rg4 {[%clk 0:00:16]} 51. h5 {[%clk 0:00:11.3]} 51... f4
{[%clk 0:00:16.5]} 52. gxf4 {[%clk 0:00:11.6]} 52... Rxf4+ {[%clk 0:00:17.4]}
53. Kg3 {[%clk 0:00:12.5]} 53... Rg4+ {[%clk 0:00:18]} 54. Kh3 {[%clk
0:00:13.1]} 54... Rg5 {[%clk 0:00:18.9]} 55. Kh4 {[%clk 0:00:14]} 55... Nf3+
{[%clk 0:00:18.9]} 56. Kh3 {[%clk 0:00:14.4]} 56... Kg7 {[%clk 0:00:18.3]} 57.
Ra8 {[%clk 0:00:12.3]} 57... Ne5 {[%clk 0:00:18.6]} 58. Rxa7+ {[%clk 0:00:12.1]}
58... Kh6 {[%clk 0:00:18.9]} 59. Ra6 {[%clk 0:00:13]} 59... Rxh5+ {[%clk
0:00:19]} 60. Kg3 {[%clk 0:00:13.8]} 60... Rf5 {[%clk 0:00:19.4]} 61. Ra8 {[%clk
0:00:13.7]} 61... Rf3+ {[%clk 0:00:19]} 62. Kh4 {[%clk 0:00:13.5]} 62... Rf4+
{[%clk 0:00:19.4]} 63. Kg3 {[%clk 0:00:14]} 63... Rg4+ {[%clk 0:00:19.9]} 64.
Kh3 {[%clk 0:00:14.7]} 64... Kg5 {[%clk 0:00:19.8]} 65. Rg8+ {[%clk 0:00:12.5]}
65... Kf5 {[%clk 0:00:19.7]} 66. Ra8 {[%clk 0:00:13.4]} 66... Rg6 {[%clk
0:00:19.3]} 67. Ra1 {[%clk 0:00:13.1]} 67... Rg7 {[%clk 0:00:19.2]} 68. Rf1+
{[%clk 0:00:13.3]} 68... Ke6 {[%clk 0:00:19.5]} 69. Ra1 {[%clk 0:00:14.2]} 69...
Rh7+ {[%clk 0:00:18.7]} 70. Kg3 {[%clk 0:00:14.4]} 70... Rg7+ {[%clk 0:00:19.6]}
71. Kf4 {[%clk 0:00:15.3]} 71... Rg4+ {[%clk 0:00:19.3]} 72. Ke3 {[%clk
0:00:15.9]} 72... Nc4+ {[%clk 0:00:19]} 73. Kf3 {[%clk 0:00:16.1]} 73... Rd4
{[%clk 0:00:19.6]} 74. Ra6+ {[%clk 0:00:15.8]} 74... Nd6 {[%clk 0:00:19.4]} 75.
Ke3 {[%clk 0:00:15.3]} 75... Rb4 {[%clk 0:00:20]} 76. Ra8 {[%clk 0:00:15.1]}
76... f5 {[%clk 0:00:20.2]} 77. Kf3 {[%clk 0:00:15.2]} 77... Ke5 {[%clk
0:00:19.6]} 78. Ra5+ {[%clk 0:00:15.9]} 78... Rb5 {[%clk 0:00:19.6]} 79. Ra3
{[%clk 0:00:16.5]} 79... Ne4 {[%clk 0:00:18.5]} 80. Ke3 {[%clk 0:00:16]} 80...
Rc5 {[%clk 0:00:18.1]} 81. Ra8 {[%clk 0:00:15.7]} 81... Rc3+ {[%clk 0:00:18.1]}
82. Ke2 {[%clk 0:00:16.6]} 82... Kf4 {[%clk 0:00:18.5]} 83. Rf8 {[%clk
0:00:16.9]} 83... Rc2+ {[%clk 0:00:18.7]} 84. Kd3 {[%clk 0:00:17.4]} 84... Rd2+
{[%clk 0:00:18.8]} 85. Kc4 {[%clk 0:00:18.3]} 85... Kg4 {[%clk 0:00:19]} 86.
Rg8+ {[%clk 0:00:18.4]} 86... Kf3 {[%clk 0:00:19.4]} 87. Rf8 {[%clk 0:00:19.3]}
87... f4 {[%clk 0:00:19.7]} 0-1

[Event "*** SCC Grand Prix: Titled Tuesday Blitz"]
[Site "Chess.com"]
[Date "2020.07.14"]
[Round "4"]
[White "chesslh19"]
[Black "denispopov"]
[Result "1/2-1/2"]
[WhiteElo "2138"]
[BlackElo "1755"]
[TimeControl "180+1"]
[EndTime "10:41:29 PDT"]
[Termination "Game drawn by agreement"]

1. e4 {[%clk 0:03:00.9]} 1... c5 {[%clk 0:02:59.8]} 2. Nf3 {[%clk 0:03:01.4]}
2... Nc6 {[%clk 0:03:00]} 3. d4 {[%clk 0:03:01.9]} 3... cxd4 {[%clk 0:03:00.9]}
4. Nxd4 {[%clk 0:03:02.7]} 4... e5 {[%clk 0:03:00.9]} 5. Nb5 {[%clk 0:03:02.6]}
5... a6 {[%clk 0:03:01]} 6. Nd6+ {[%clk 0:03:02.9]} 6... Bxd6 {[%clk 0:03:01.1]}
7. Qxd6 {[%clk 0:03:03.8]} 7... Qf6 {[%clk 0:03:01.6]} 8. Qxf6 {[%clk
0:03:01.5]} 8... Nxf6 {[%clk 0:03:02.5]} 9. Nc3 {[%clk 0:03:00.8]} 9... Nb4
{[%clk 0:03:03.1]} 10. Bd3 {[%clk 0:02:57.3]} 10... d5 {[%clk 0:03:02.8]} 11.
exd5 {[%clk 0:02:52.2]} 11... Nbxd5 {[%clk 0:03:03.7]} 12. Nxd5 {[%clk
0:02:39.8]} 12... Nxd5 {[%clk 0:03:04.6]} 13. O-O {[%clk 0:02:32.5]} 13... O-O
{[%clk 0:03:02.4]} 14. Re1 {[%clk 0:02:31.6]} 14... f6 {[%clk 0:02:51.5]} 15.
Bc4 {[%clk 0:02:30.3]} 15... Be6 {[%clk 0:02:51.2]} 16. Bxd5 {[%clk 0:02:14.7]}
16... Bxd5 {[%clk 0:02:52.1]} 17. f4 {[%clk 0:02:04.7]} 17... e4 {[%clk
0:02:48.6]} 18. b3 {[%clk 0:01:59]} 18... Rfd8 {[%clk 0:02:29.2]} 19. c4 {[%clk
0:01:56.3]} 19... Bc6 {[%clk 0:02:28.6]} 20. Be3 {[%clk 0:01:52.6]} 20... f5
{[%clk 0:02:27.7]} 21. Rad1 {[%clk 0:01:49.7]} 21... Rd3 {[%clk 0:02:20.9]} 22.
Kf2 {[%clk 0:01:41.2]} 22... Rad8 {[%clk 0:02:18.7]} 23. Rxd3 {[%clk 0:01:39.9]}
23... Rxd3 {[%clk 0:02:17.4]} 24. Ke2 {[%clk 0:01:28.6]} 24... Kf7 {[%clk
0:02:05.5]} 25. Rd1 {[%clk 0:01:27.9]} 25... Rxd1 {[%clk 0:02:05.1]} 26. Kxd1
{[%clk 0:01:28.8]} 26... Ke6 {[%clk 0:02:04.5]} 27. Bd4 {[%clk 0:01:28.5]} 27...
g6 {[%clk 0:02:02.8]} 28. Kd2 {[%clk 0:01:28.7]} 28... Kf7 {[%clk 0:01:55.3]}
29. Ke3 {[%clk 0:01:28.3]} 29... h6 {[%clk 0:01:54.6]} 30. h3 {[%clk 0:01:27]}
30... Bd7 {[%clk 0:01:36.3]} 31. Be5 {[%clk 0:01:26.5]} 31... Ke6 {[%clk
0:01:21.8]} 32. Bg7 {[%clk 0:01:24.6]} 32... h5 {[%clk 0:01:21.4]} 33. g3 {[%clk
0:01:21]} 33... Bc6 {[%clk 0:01:20.1]} 34. Kd4 {[%clk 0:01:20.8]} 34... Kd6
{[%clk 0:01:14.7]} 35. Bf8+ {[%clk 0:01:19.8]} 35... Ke6 {[%clk 0:01:12.5]} 36.
Bb4 {[%clk 0:01:19.7]} 36... Kd7 {[%clk 0:00:57.8]} 37. Bd2 {[%clk 0:01:16.4]}
37... Kd6 {[%clk 0:00:55.9]} 38. Bc1 {[%clk 0:01:13.4]} 38... Ke6 {[%clk
0:00:54.4]} 39. Kc5 {[%clk 0:01:08.3]} 39... Kd7 {[%clk 0:00:53.5]} 40. Kb6
{[%clk 0:00:59.9]} 40... Kd6 {[%clk 0:00:50.3]} 41. Be3 {[%clk 0:00:59.9]} 41...
Kd7 {[%clk 0:00:49.5]} 42. b4 {[%clk 0:00:47.3]} 42... Kc8 {[%clk 0:00:48.1]}
43. b5 {[%clk 0:00:46.2]} 43... axb5 {[%clk 0:00:49]} 44. cxb5 {[%clk
0:00:47.1]} 44... Bd5 {[%clk 0:00:49]} 45. a4 {[%clk 0:00:47.3]} 45... Kb8
{[%clk 0:00:46.6]} 46. a5 {[%clk 0:00:43.3]} 46... Bc4 {[%clk 0:00:37.1]} 47.
Kc5 {[%clk 0:00:42.4]} 47... Bf7 {[%clk 0:00:35.8]} 48. Kd6 {[%clk 0:00:41.6]}
48... Bc4 {[%clk 0:00:27.3]} 49. b6 {[%clk 0:00:35.3]} 49... Bf1 {[%clk
0:00:21.7]} 50. h4 {[%clk 0:00:31.1]} 50... Bd3 {[%clk 0:00:20.1]} 51. Ke7
{[%clk 0:00:30.6]} 51... Be2 {[%clk 0:00:20.3]} 52. Kf6 {[%clk 0:00:25.1]} 52...
Bg4 {[%clk 0:00:20.3]} 53. Kxg6 {[%clk 0:00:25]} 53... Ka8 {[%clk 0:00:20.1]}
54. Kf6 {[%clk 0:00:24.8]} 54... Kb8 {[%clk 0:00:20.4]} 55. Ke7 {[%clk
0:00:25.1]} 55... Kc8 {[%clk 0:00:20.2]} 56. Bd4 {[%clk 0:00:24.1]} 56... Kb8
{[%clk 0:00:19.5]} 57. Kd8 {[%clk 0:00:23.9]} 57... Ka8 {[%clk 0:00:18.9]} 58.
Kc7 {[%clk 0:00:23.4]} 58... Be2 {[%clk 0:00:17.7]} 59. Be3 {[%clk 0:00:21.2]}
59... Bd3 {[%clk 0:00:17.2]} 60. Bf2 {[%clk 0:00:14.7]} 60... Be2 {[%clk
0:00:16.9]} 61. Bg1 {[%clk 0:00:14.8]} 61... Bd3 {[%clk 0:00:16.9]} 62. Be3
{[%clk 0:00:14.8]} 62... Be2 {[%clk 0:00:17.4]} 63. Bf2 {[%clk 0:00:12.8]} 63...
Bd3 {[%clk 0:00:17.4]} 64. Bc5 {[%clk 0:00:13.1]} 64... Be2 {[%clk 0:00:17.6]}
65. Bg1 {[%clk 0:00:11.8]} 65... Bd3 {[%clk 0:00:17.8]} 66. g4 {[%clk 0:00:11]}
66... fxg4 {[%clk 0:00:07.7]} 67. f5 {[%clk 0:00:11.1]} 67... e3 {[%clk
0:00:08.1]} 68. Bxe3 {[%clk 0:00:05.4]} 68... Bxf5 {[%clk 0:00:07.8]} 69. a6
{[%clk 0:00:04.8]} 69... Be4 {[%clk 0:00:08.3]} 70. axb7+ {[%clk 0:00:03.8]}
70... Bxb7 {[%clk 0:00:09.2]} 71. Bf2 {[%clk 0:00:03.4]} 71... Bf3 {[%clk
0:00:09.1]} 72. Bg3 {[%clk 0:00:04]} 72... Be4 {[%clk 0:00:08.3]} 73. Bh2 {[%clk
0:00:04.6]} 73... Bf3 {[%clk 0:00:08.4]} 74. Bg3 {[%clk 0:00:05.2]} 74... Be4
{[%clk 0:00:08.7]} 75. Bf2 {[%clk 0:00:05.7]} 75... Bf3 {[%clk 0:00:08.9]} 76.
Kd6 {[%clk 0:00:05.7]} 76... Kb7 {[%clk 0:00:07.7]} 77. Ke5 {[%clk 0:00:05.2]}
77... Kc6 {[%clk 0:00:06.1]} 78. Kf4 {[%clk 0:00:05.3]} 1/2-1/2